Cogmind - Beta 16 @@@ ROGUE MODE // 2025.11.30 @ 20:30:09 Player: shapeshifter Result: Destroyed by AT-34Z(x) with Makeshift Spear Performance ------------- Evolutions (2) 1000 Regions Visited (6) 1200 Robots Destroyed (82) 410 Value Destroyed (2868) 2868 Prototype IDs (20) 400 Alien Tech Used (0) 0 Bonus (630) 630 TOTAL SCORE: 6508 Bonus ------- Follower Combat Kills 7 Registered with UFD 300 Met Optimus in HQ 500 Friendly Fire -177 Cogmind --------- Core Integrity 0/550 Matter 0/300 Energy 900/900 System Corruption 2% Temperature Cool (0) Movement Treading (235) Ox1 Location -8/Scraptown Parts ------- > --- POWER (1) -------- Hybrid Fission Core > --- PROPULSION (4) --- Light Treads Tri-treads > --- UTILITY (2) ------ Huge Storage Unit > --- WEAPON (4) ------- Helical Railgun Siege Cannon > --- INVENTORY (25) --- Graviton Reactor Graviton Reactor Light Treads Light Treads Improved Heat Sink Advanced Energy Well (500) High-capacity Matter Pod (0) High-capacity Matter Pod (0) High-capacity Matter Pod (0) High-capacity Matter Pod (0) Tactical Coordination Suite Advanced Weapon Cycler Graphene Brace Tractor Beam Field Recycling Unit (0) KN-7UR's Autopenetrator Improved EM Pulse Cannon Helical Railgun Scatter Rocket Array CPS Tube (1) DRS Beacon (Ready) Peak State ------------ > --- POWER ------------ Hybrid Fission Core > --- PROPULSION ------- Light Treads Tri-treads > --- UTILITY ---------- Huge Storage Unit Spectral Analyzer > --- WEAPON ----------- Siege Cannon Scatter Rocket Array > --- INVENTORY -------- Graviton Reactor Graviton Reactor Light Treads Light Treads Tri-treads Improved Heat Sink Advanced Energy Well High-capacity Matter Pod High-capacity Matter Pod High-capacity Matter Pod High-capacity Matter Pod Tactical Coordination Suite Advanced Weapon Cycler Graphene Brace Tractor Beam Field Recycling Unit KN-7UR's Autopenetrator Improved EM Pulse Cannon Helical Railgun Helical Railgun CPS Tube DRS Beacon Botcube [Rating: 70] Favorites ----------- Power Heavy Ion Engine Engine Heavy Ion Engine Power Core Hybrid Fission Core Propulsion Armored Treads Treads Armored Treads Utility Huge Storage Unit Device Experimental Heat Sink Storage Huge Storage Unit Processor Spectral Analyzer Protection Experimental Power Shielding Weapon Heavy Assault Rifle Energy Gun Improved Spread Laser Energy Cannon Advanced Beam Cannon Ballistic Gun Heavy Assault Rifle Ballistic Cannon Siege Cannon Launcher Scatter Rocket Array Special Weapon CPS Tube Build | -11 -10 -9 -8 -8 -8 -8 ------- Run | Yrd Mat Mat Mat Sto Rec Scr Slots Evolved 4 | . . 2 2 . . . Power . | . . . . . . . Propulsion 2 | . . 1 1 . . . Utility . | . . . . . . . Weapon 2 | . . 1 1 . . . Parts Attached 71 | 6 2 12 9 15 3 24 Power 6 | 1 . 2 . . 1 2 Engine 5 | 1 . 2 . . 1 1 Core 1 | . . . . . . 1 Reactor . | . . . . . . . Propulsion 20 | 2 . 2 2 8 . 6 Treads 20 | 2 . 2 2 8 . 6 Leg . | . . . . . . . Wheel . | . . . . . . . Hover . | . . . . . . . Flight . | . . . . . . . Utility 18 | 1 2 2 2 2 . 9 Device 8 | . 1 1 2 1 . 3 Storage 7 | 1 1 1 . 1 . 3 Processor 1 | . . . . . . 1 Hackware . | . . . . . . . Protection 2 | . . . . . . 2 Artifact . | . . . . . . . Weapon 27 | 2 . 6 5 5 2 7 Energy Gun 12 | 1 . 5 1 1 1 3 Energy Cannon 1 | . . . . 1 . . Ballistic Gun 9 | 1 . . 4 3 . 1 Ballistic Cannon 1 | . . . . . . 1 Launcher 2 | . . 1 . . 1 . Special Weapon 2 | . . . . . . 2 Impact Weapon . | . . . . . . . Slashing Weapon . | . . . . . . . Piercing Weapon . | . . . . . . . Special Melee Weapon . | . . . . . . . Unidentified Prototypes 12 | . . 1 1 3 2 5 Corrupted Parts 1 | . . . . 1 . . System Corruption 1 | . . . . 1 . . Parts Lost 22 | . . 4 3 . . 15 Power 2 | . . . . . . 2 Propulsion 10 | . . 2 2 . . 6 Utility 1 | . . . . . . 1 Weapon 9 | . . 2 1 . . 6 Highest Loss Streak 14 | . . 3 2 . . 14 To Critical Strikes 1 | . . . . . . 1 Average Backups 19 | 1 4 12 14 20 25 22 Power . | . . . 1 1 1 . Propulsion 3 | . . . . 2 6 5 Utility 9 | . 2 7 7 10 11 9 Weapon 4 | . 1 3 4 5 6 4 Tool/Special . | . . . . . . . Unused Backups 39 | . . 9 2 5 . 23 Power 3 | . . . . . . 3 Propulsion 2 | . . . . 1 . 1 Utility 23 | . . 6 . 4 . 13 Weapon 9 | . . 3 1 . . 5 Tool/Special 2 | . . . 1 . . 1 Average Slot Usage (%) 92 | . 99 82 83 96 97 93 Engine 9 | . 14 11 9 8 9 8 Treads 32 | . 27 22 20 33 36 35 Device 9 | . 14 11 9 9 9 8 Storage 9 | . 14 11 9 9 9 9 Energy Gun 15 | . 14 23 . . . 22 Ballistic Gun 15 | . 14 3 34 34 33 7 Peak Build Rating 70 | 6 7 18 24 37 38 70 Average Rating 35 | 4 6 12 19 28 36 46 On Entrance 17 | . 6 7 18 21 37 31 Avg Prop Armor Cover (%) . | . . . . . . . Naked Turns . | . . . . . . . Heaviest Build 122 | 10 26 40 42 101 100 122 Greatest Support 80 | 40 40 60 60 80 80 80 Greatest Overweight (x) 3 | . 3 1 1 1 1 1 Average Overweight (x) . | . . . . . 1 1 Largest Inventory Capacity 25 | 8 15 15 15 25 25 25 Average Capacity 22 | 7 11 15 15 23 25 25 Most Carried 25 | 4 6 15 15 25 25 25 Average Carried 20 | 1 4 12 14 20 24 23 Final Capacity 25 | 8 15 15 15 25 25 25 Final Carried 25 | 4 6 14 15 25 25 21 Class Distribution -------------------- 59% | Gunner 19% | Scavenger-Gunner 18% | Mutant Dominant Class ---------------- Mutant | -10/Materials Mutant | -9/Materials Scavenger-Gunner | -8/Materials Scavenger-Gunner | -8/Storage Gunner | -8/Recycling Gunner | -8/Scraptown Resources | -11 -10 -9 -8 -8 -8 -8 ----------- Run | Yrd Mat Mat Mat Sto Rec Scr Matter Collected 2461 | 265 244 165 362 519 98 808 Remotely 590 | . . . . . . 590 Salvage Created 3480 | 160 45 680 300 87 65 2143 Parts 222 | 13 2 46 13 5 4 139 Haulers Intercepted 3 | . . 2 . 1 . . Recyclers Shooed 1 | . . . . 1 . . Parts Field Recycled 2 | . . . . . . 2 Retrieved Matter 30 | . . . . . . 30 Parts Self-Destructed . | . . . . . . . Prevented . | . . . . . . . Parts Restored . | . . . . . . . Kills | -11 -10 -9 -8 -8 -8 -8 ------- Run | Yrd Mat Mat Mat Sto Rec Scr Combat Hostiles Destroyed 69 | . 3 20 6 . . 40 Guns 25 | . 3 15 6 . . 1 Cannons 13 | . . . . . . 13 AOE 31 | . . 5 . . . 26 Classes Destroyed 18 | 2 1 7 . 1 . 7 Worker 2 | . . 1 . 1 . . Builder 1 | . . 1 . . . . Tunneler 3 | 3 . . . . . . Hauler 3 | . . 2 . 1 . . Recycler 2 | 1 . . . . 1 . Mechanic 1 | . . . . 1 . . Watcher 1 | . . 1 . . . . Swarmer 7 | . 3 4 . . . . Grunt 14 | . . 9 5 . . . Duelist 2 | . . 1 1 . . . Sentry 6 | . . 6 . . . . Federalist 4 | . . . . . . 4 Explorer 2 | . . . . . . 2 Ranger 4 | . . . . . . 4 Guru 4 | . . . . . . 4 Scrapper 21 | . . . . . . 21 Elite 2 | . . . . . . 2 Thug 1 | . . . . . . 1 Mutant 1 | . . . . . . 1 Best Kill Streak 9 | 2 3 9 3 1 1 9 Combat Bots Only 9 | . 3 9 3 . . 9 Max Kills in Single Turn 4 | 1 1 2 1 1 1 4 Gunslinging . | . . . . . . . Exploded 4 | . . 2 . . . 4 Melee . | . . . . . . . Uniques/NPCs Destroyed 1 | . . . . . . 1 Optimus (-8/Scraptown) Combat | -11 -10 -9 -8 -8 -8 -8 -------- Run | Yrd Mat Mat Mat Sto Rec Scr Hostile Shots Fired 423 | . 11 71 27 21 10 283 Missed 88 | . 3 16 7 5 2 55 Hits 335 | . 8 55 20 16 8 228 Melee 10 | . . 2 4 . . 4 Projectile 325 | . 8 53 16 16 8 224 Critical Strikes 24 | . . 2 2 2 . 18 Damage Taken 5490 | . 57 836 399 338 118 3742 Core 719 | . 9 131 67 . . 512 Absorbed by Shields . | . . . . . . . Reduced by Siege Mode 26 | . . . . . . 26 Core Remaining (%) 87 | 100 96 67 . . . . Volleys Fired 147 | 5 4 50 17 15 6 50 Largest 4 | 2 2 3 4 4 4 4 Hottest 248 | 60 60 189 92 92 92 248 Shots Fired 365 | 10 8 111 65 61 24 86 Gun 328 | 10 8 106 65 61 24 54 Cannon 16 | . . . . . . 16 Launcher 19 | . . 5 . . . 14 Special 2 | . . . . . . 2 Kinetic 202 | 5 4 12 65 61 24 31 Thermal 142 | 5 4 94 . . . 39 Explosive 19 | . . 5 . . . 14 Electromagnetic . | . . . . . . . Robot Hit Streak 31 | 5 4 13 7 13 5 31 Robot Miss Streak 7 | 1 3 4 4 2 1 7 Penetration Max 1 | . . . . . . 1 Secondary Targets 6 | . 1 1 3 . . 1 Max Gunslinging Chain 1 | . 1 1 1 . . 1 Shots Hit Robots 267 | 8 4 81 44 39 17 74 Core Hits 254 | 7 3 61 18 8 5 152 Critical Kills . | . . . . . . . Critical Parts Destroyed . | . . . . . . . Critical Strikes 2 | . . 1 . . . 1 Burn 1 | . . 1 . . . . Blast 1 | . . . . . . 1 Melee Attacks . | . . . . . . . Impact . | . . . . . . . Slashing . | . . . . . . . Piercing . | . . . . . . . Sneak Attacks . | . . . . . . . Combat Hostiles . | . . . . . . . Follow-up Attacks . | . . . . . . . Damage Inflicted 8145 | 75 40 1581 673 604 268 4904 Guns 4003 | 75 40 1119 673 604 268 1224 Cannons 1543 | . . . . . . 1543 Explosions 2599 | . . 462 . . . 2137 Melee . | . . . . . . . Ramming . | . . . . . . . Kinetic 3374 | 21 19 92 673 604 268 1697 Thermal 2172 | 54 21 1027 . . . 1070 Explosive 2599 | . . 462 . . . 2137 Electromagnetic . | . . . . . . . Impact . | . . . . . . . Slashing . | . . . . . . . Piercing . | . . . . . . . Highest Corruption 2 | . . . . 1 1 2 Average Corruption 1 | . . . . 1 1 1 Corruption Purged . | . . . . . . . Corruption Blocked . | . . . . . . . Effects 24 | . . . . 11 8 5 Message Errors 9 | . . . . 5 2 2 Matter Fused 5 | . . . . 1 3 1 Heat Flow Errors 2 | . . . . 1 . 1 Energy Discharges 3 | . . . . 2 1 . Data Loss (minor) 3 | . . . . 1 2 . Misfires 1 | . . . . 1 . . Weapon Failures 1 | . . . . . . 1 Overload Shots . | . . . . . . . Overflow Damage 322 | . . 14 . . . 308 Projectiles 306 | . . . . . . 306 Explosions 16 | . . 14 . . . 2 Melee . | . . . . . . . Knockbacks 3 | . . . . . . 3 Impact . | . . . . . . . Kinetic 3 | . . . . . . 3 Secondary . | . . . . . . . Self-Inflicted Damage 79 | . . 79 . . . . Shots 3 | . . 3 . . . . Rammed . | . . . . . . . Targets Rammed . | . . . . . . . Kicked . | . . . . . . . Crushed . | . . . . . . . Highest Temperature 467 | 20 20 467 16 190 . 341 Average Temperature 113 | 15 13 128 6 91 . 113 Received Heat Transfer 1713 | . . 273 144 129 36 1131 Effects 2 | . . 2 . . . . Shutdowns 1 | . . 1 . . . . Damage (minor) 1 | . . 1 . . . . Siege Activations 3 | . . . . . . 3 Total Turns 29 | . . . . . . 29 Longest Duration 11 | . . . . . . 11 Martial Activations . | . . . . . . . Shielding Activations . | . . . . . . . Robots Disrupted . | . . . . . . . Combat Hostiles . | . . . . . . . Robots Corrupted . | . . . . . . . Combat Hostiles . | . . . . . . . Parts Fried . | . . . . . . . Impact Corruptions . | . . . . . . . Robots Melted . | . . . . . . . Combat Hostiles . | . . . . . . . Parts Melted 5 | . . 3 . . . 2 Heat Transferred 2767 | 125 50 1946 . . . 646 Parts Sabotaged . | . . . . . . . Parts Stolen . | . . . . . . . Parts Stripped . | . . . . . . . Power Chain Reactions . | . . . . . . . Alert | -11 -10 -9 -8 -8 -8 -8 ------- Run | Yrd Mat Mat Mat Sto Rec Scr Maximum Alert Level 1 | . . 1 . . . . Low Security (%) 94 | 100 100 75 100 100 100 . Level 1 5 | . . 24 . . . . Level 2 . | . . . . . . . Level 3 . | . . . . . . . Level 4 . | . . . . . . . Level 5 . | . . . . . . . High Security . | . . . . . . . Max Security . | . . . . . . . Peak Influence 246 | 5 60 246 89 15 5 . Initial 89 | . 3 . 89 10 . . Average 36 | 2 9 137 23 . . . Influence Increases 872 | 20 70 603 140 34 5 . Destroy 0b10 Robot/C 580 | . 60 400 120 . . . Destroy 0b10 Robot/NC 65 | 20 . 25 . 15 5 . Destroy Leader 148 | . 10 116 20 2 . . Destroy Structure 19 | . . 17 . 2 . . Partial Spotted 15 | . . 15 . . . . Lose Combat Pursuer 45 | . . 30 . 15 . . Influence Decreases 872 | 15 75 392 325 60 5 . Entered New Map 140 | . 2 . 122 16 . . Time Decay 662 | 15 73 352 173 44 5 . Lost Part 70 | . . 40 30 . . . Squads Dispatched 5 | . . 3 . 2 . . Investigation 1 | . . . . 1 . . Extermination . | . . . . . . . Reinforcement 4 | . . 3 . 1 . . Assault . | . . . . . . . Garrison . | . . . . . . . Intercept . | . . . . . . . Searches Triggered . | . . . . . . . Construction Impeded 1 | . . 1 . . . . Haulers Reinforced . | . . . . . . . Active Scanning Responses . | . . . . . . . Cargo Convoy Interrupts . | . . . . . . . Stealth | -11 -10 -9 -8 -8 -8 -8 --------- Run | Yrd Mat Mat Mat Sto Rec Scr Distress Signals 4 | . . 2 . 2 . . Communications Jammed . | . . . . . . . Distress Signals . | . . . . . . . Times Spotted 116 | . 3 29 8 28 4 44 Peak Tracking Total 10 | . 3 10 3 5 2 9 Tactical Retreats 4 | . . 2 . 1 . 1 Traps | -11 -10 -9 -8 -8 -8 -8 ------- Run | Yrd Mat Mat Mat Sto Rec Scr Traps Triggered 5 | . 1 . . 4 . . Indirectly . | . . . . . . . Trap Hack Attempts . | . . . . . . . Triggered . | . . . . . . . Disarmed . | . . . . . . . Reprogrammed . | . . . . . . . Reused . | . . . . . . . Traps Extracted . | . . . . . . . Installed . | . . . . . . . Triggered . | . . . . . . . Machines | -11 -10 -9 -8 -8 -8 -8 ---------- Run | Yrd Mat Mat Mat Sto Rec Scr Machines Disabled 4 | . . . . . . 4 Max in Single Turn 1 | . . . . . . 1 Machines Repaired . | . . . . . . . Machines Dismantled . | . . . . . . . Machines Sabotaged . | . . . . . . . Overloaded Fab Kills . | . . . . . . . Hacking | -11 -10 -9 -8 -8 -8 -8 --------- Run | Yrd Mat Mat Mat Sto Rec Scr Machines Accessed 1 | . . . . . . 1 Terminals . | . . . . . . . Fabricators . | . . . . . . . Repair Stations . | . . . . . . . Recycling Units . | . . . . . . . Scanalyzers . | . . . . . . . Garrison Access . | . . . . . . . Total Hacks 3 | . . . . . . 3 Successful 3 | . . . . . . 3 Failed . | . . . . . . . Catastrophic . | . . . . . . . Database Lockouts . | . . . . . . . Manual . | . . . . . . . Terminals . | . . . . . . . Fabricators . | . . . . . . . Repair Stations . | . . . . . . . Recycling Units . | . . . . . . . Scanalyzers . | . . . . . . . Garrison Access . | . . . . . . . Terminal Hacks 3 | . . . . . . 3 Record 3 | . . . . . . 3 Fabricator Hacks . | . . . . . . . Repair Station Hacks . | . . . . . . . Recycling Unit Hacks . | . . . . . . . Scanalyzer . | . . . . . . . Garrison Access Hacks . | . . . . . . . Unauthorized Hacks . | . . . . . . . Terminals . | . . . . . . . Fabricators . | . . . . . . . Repair Stations . | . . . . . . . Recycling Units . | . . . . . . . Scanalyzers . | . . . . . . . Garrison Access . | . . . . . . . Data Cores Recovered . | . . . . . . . Used . | . . . . . . . Hacking Detections . | . . . . . . . Full Trace Events . | . . . . . . . Feedback Events . | . . . . . . . Feedback Blocked . | . . . . . . . Robot Schematics Acquired . | . . . . . . . Robots Built . | . . . . . . . Authchips . | . . . . . . . Time . | . . . . . . . Total Robot Build Rating . | . . . . . . . Part Schematics Acquired . | . . . . . . . Parts Built . | . . . . . . . Authchips . | . . . . . . . Time . | . . . . . . . Total Part Build Rating . | . . . . . . . Part Studies Acquired . | . . . . . . . Parts Repaired . | . . . . . . . Time . | . . . . . . . Parts Recycled . | . . . . . . . Recycled Matter . | . . . . . . . Retrieved Matter . | . . . . . . . Retrieved Components . | . . . . . . . Parts Scanalyzed . | . . . . . . . Part Schematics Acquired . | . . . . . . . Parts Damaged . | . . . . . . . Bothacking | -11 -10 -9 -8 -8 -8 -8 ------------ Run | Yrd Mat Mat Mat Sto Rec Scr Used RIF Installer . | . . . . . . . Robots Hacked . | . . . . . . . Non-combat . | . . . . . . . Combat . | . . . . . . . Robot Hacks Applied . | . . . . . . . Relay Couplers Released . | . . . . . . . Fabnet Peak Effective % . | . . . . . . . Robots Rewired . | . . . . . . . Allies Hacked . | . . . . . . . Hacks Repelled . | . . . . . . . Allies | -11 -10 -9 -8 -8 -8 -8 -------- Run | Yrd Mat Mat Mat Sto Rec Scr Total Allies 2 | . . . . . . 2 Largest Group 1 | . . . . . . 1 Highest-Rated Group 63 | . . . . . . 63 Highest-Rated Ally 63 | . . . . . . 63 Total Orders 2 | . . . . . . 2 STAY 1 | . . . . . . 1 FOLLOW 1 | . . . . . . 1 Ally Attacks 4 | . . . . . . 4 Total Damage 173 | . . . . . . 173 Kills 1 | . . . . . . 1 Allies Corrupted . | . . . . . . . Allies Melted . | . . . . . . . Intel | -11 -10 -9 -8 -8 -8 -8 ------- Run | Yrd Mat Mat Mat Sto Rec Scr Active Infowar (turns) 886 | . 472 362 . . . 52 Optics 52 | . . . . . . 52 Seismic 834 | . 472 362 . . . . Robot Analysis Total . | . . . . . . . Derelict Logs Recovered . | . . . . . . . Drone Launches . | . . . . . . . Drone Recoveries . | . . . . . . . Exploration | -11 -10 -9 -8 -8 -8 -8 ------------- Run | Yrd Mat Mat Mat Sto Rec Scr Turns Passed 9399 | 99 472 1038 575 1561 670 4984 Spaces Moved 3663 | 56 280 482 232 592 248 1773 Core 19 | 18 1 . . . . . Treads 3644 | 38 279 482 232 592 248 1773 Legs . | . . . . . . . Wheels . | . . . . . . . Hover . | . . . . . . . Flight . | . . . . . . . Fastest Speed 50 | 50 160 160 160 160 250 235 Average Speed 222 | 124 160 161 203 226 250 249 Slowest Speed 250 | 160 200 240 240 250 250 250 Overloaded Moves . | . . . . . . . Propulsion Burnouts . | . . . . . . . Robots Hopped . | . . . . . . . Potential Cave-ins . | . . . . . . . Cave-ins Triggered . | . . . . . . . Exploration Rate (%) 52 | 5 43 54 22 84 78 81 Regions Visited 6 Branch Regions 3 Pre-discovered Areas . | . . . . . . . Known Exits Taken . | . . . . . . . Unknown Exits Taken 6 | 1 1 1 1 1 1 . Scrap Searched 3 | . . . . . . 3 Spaces Dug . | . . . . . . . Terrain Destroyed 171 | . . 15 . . . 156 Melee . | . . . . . . . Projectile 6 | . . . . . . 6 AOE 165 | . . 15 . . . 150 Terrain Rammed . | . . . . . . . Walls Destroyed . | . . . . . . . Machines Disabled . | . . . . . . . Actions | -11 -10 -9 -8 -8 -8 -8 --------- Run | Yrd Mat Mat Mat Sto Rec Scr Total 4625 | 76 297 651 298 772 288 2243 Wait 530 | . 3 64 17 109 22 315 Move 3657 | 55 279 481 231 591 247 1773 Hop . | . . . . . . . Pick Up 109 | 10 6 27 11 17 2 36 Fast Attach 20 | . . 2 4 14 . . Attach 35 | 6 3 4 2 . 2 18 Detach 5 | . . . . . 2 3 Swap 47 | . 1 6 6 10 1 23 Drop 75 | . 1 17 10 16 6 25 Fire 147 | 5 4 50 17 15 6 50 Melee . | . . . . . . . Ram . | . . . . . . . Kick . | . . . . . . . Crush . | . . . . . . . Escape Stasis . | . . . . . . . Rewire . | . . . . . . . Trap . | . . . . . . . Miscellaneous . | . . . . . . . Route ------- -11/Scrapyard -10/Materials -9/Materials (discovered 2 exits: [*Mat x2]) -8/Materials (discovered 3 exits: [*Fac] / [*Sto x2]) -8/Storage (discovered 2 exits: [*Fac] / [*Rec]) -8/Recycling -8/Scraptown (discovered 1 exit: [*Fac]) History --------- Turn | Location | Event 2 | -11/Scrapyard | Met Revision 17 9 | -11/Scrapyard | Discovered new exit (range 15) 100 | -11/Scrapyard | Entered Materials 310 | -10/Materials | Build established: Mutant 448 | -10/Materials | Discovered new exit (range 6) 572 | -10/Materials | Entered another Materials area 572 | -9/Materials | Evolved 2 slots: Propulsion x1, Weapon x1 889 | -9/Materials | Lost 3 parts (1n2w) 892 | -9/Materials | Destroyed 9 combat bots 1287 | -9/Materials | Discovered new exit (range 7) 1441 | -9/Materials | Build established: Gunner 1600 | -9/Materials | Discovered new exit (range 5) 1610 | -9/Materials | Entered another Materials area 1610 | -8/Materials | Evolved 2 slots: Propulsion x1, Weapon x1 1802 | -8/Materials | Discovered new exit (range 11) 1852 | -8/Materials | Met 7R-MNS 1887 | -8/Materials | Discovered new exit (range 10) 1922 | -8/Materials | Build established: Scavenger-Gunner 2012 | -8/Materials | Discovered new exit (range 16) 2185 | -8/Materials | Entered Storage 2195 | -8/Storage | Met 01-MTF 2585 | -8/Storage | Discovered new exit (range 7) 2970 | -8/Storage | Discovered new exit (range 5) 3005 | -8/Storage | Found Prototype Launcher 3710 | -8/Storage | Build established: Gunner 3746 | -8/Storage | Entered Recycling 3746 | -8/Recycling | Accompanied by 1 ally (01-MTF) 4324 | -8/Recycling | Scanned before Scraplab entrance 4374 | -8/Recycling | Found Prototype Energy Gun 4385 | -8/Recycling | Identified Scatter Rocket Array 4387 | -8/Recycling | Identified KN-7UR's Autopenetrator 4388 | -8/Recycling | Entered Scraplab 4408 | -8/Recycling | Discovered new exit (range 2) 4416 | -8/Recycling | Entered Scraptown 4416 | -8/Scraptown | System corruption cleaned by C-Scrubber 4539 | -8/Scraptown | Visited Spacefarers 4649 | -8/Scraptown | Visited UFD Registry 4649 | -8/Scraptown | Registered with UFD as "Kinetichaser" 4675 | -8/Scraptown | Build established: Mutant 4756 | -8/Scraptown | Visited Red Mages 4834 | -8/Scraptown | Discovered new exit (range 13) 5233 | -8/Scraptown | Build established: Gunner 5459 | -8/Scraptown | Visited Scrapoid Research Area 5494 | -8/Scraptown | Visited Curators Association 5574 | -8/Scraptown | Visited Derelict Rescue Squad 5590 | -8/Scraptown | Found DRS Beacon 5631 | -8/Scraptown | Visited Scrapoid Pod Storage 5663 | -8/Scraptown | Visited Infowarlord's Domain 5696 | -8/Scraptown | Visited Abandonware Association 5723 | -8/Scraptown | Learned abandonware demo "HACKBUD.EXE" 5766 | -8/Scraptown | Visited Modified Component R&D 5876 | -8/Scraptown | Visited Botcube Research 5916 | -8/Scraptown | Visited Analyses Database 7011 | -8/Scraptown | Found Botcube 7719 | -8/Scraptown | Visited Scrap Suit Storage 7729 | -8/Scraptown | Found Scrap Suit 8077 | -8/Scraptown | Found Spectral Analyzer 8159 | -8/Scraptown | Botcube activated 8177 | -8/Scraptown | Botcube completed mutation into treaded form, armed with 2 guns. 8479 | -8/Scraptown | Found Scrapoid Pod 8625 | -8/Scraptown | Met Optimus 8625 | -8/Scraptown | Accepted into 0bPrime 9025 | -8/Scraptown | Civil war broke out across Scraptown 9026 | -8/Scraptown | Attached CPS modules to Triborg. 9053 | -8/Scraptown | Attacked by Scraptown defenders 9076 | -8/Scraptown | Attached CPS modules to Optimus. 9109 | -8/Scraptown | Core integrity fell below 50% 9112 | -8/Scraptown | Optimus destroyed in the chaos of civil war 9112 | -8/Scraptown | Destroyed Optimus 9132 | -8/Scraptown | Found Tri-treads 9136 | -8/Scraptown | Found Prototype Ballistic Cannon 9137 | -8/Scraptown | Identified Siege Cannon 9140 | -8/Scraptown | Destroyed 9 combat bots 9162 | -8/Scraptown | Lost 14 parts (2p5n1u6w) 9164 | -8/Scraptown | Found Tri-treads 9233 | -8/Scraptown | Found Botcube 9257 | -8/Scraptown | Core integrity fell below 20% 9345 | -8/Scraptown | Destroyed 7 combat bots 9382 | -8/Scraptown | Botcube activated 9398 | -8/Scraptown | Botcube completed mutation into legged form, armed with 2 melee weapons. 9400 | -8/Scraptown | Destroyed by AT-34Z(x) with Makeshift Spear Last Messages --------------- 09370_ 5I-MBV(j) knocked back. 09372_ Siege Slug penetrates N3-QT6(g). 09372_ N3-QT6(g) destroyed. 09372_ Tri-treads destroyed. 09378_ Critical hit (Burn: +50). 09379_ Ended siege mode. 09380_ The unstable cave ceiling collapses. 09380_ Dropped Botcube. 09381_ Critical hit (Burn: +50). 09382_ Botcube begins transforming into Mutated Botcube. 09383_ Acquired 16 matter. 09386_ 5I-MBV(j) switches sides. 09387_ The unstable cave ceiling collapses. 09387_ 5I-MBV(j) destroyed. 09388_ System corrupted: Heat flow error (+182). 09389_ The unstable cave ceiling collapses. 09395_ Identified Helical Railgun. 09398_ Botcube completes transformation. 09399_ The unstable cave ceiling collapses. Map ----- +----------------------------------------------------+ | ???????# # ????????"""""??????????????????? | | ??????### ### ############ ##########???????#### | | ??????# %= #???????#""" | | ####### =! #???????#" | | "# #???????#" | | " " % #???????#" | | "" "# = #???????#" | | ?"" "# ################# #????####" | | ? ?# #???????????????# #????"""" | | " ?# #######?????????# #????"""" | | " ??# #""""""?????????# = #????"""" | | " ??# """""????????? % =#????"""" | | "???# # " ?????## %=* ###?#"""" | | ##????# # "####?? !!! # #?#"""" | | ??????# #? """ "#!! ### " "#"""" | | ??????# #? "" "#!! # """"#"""" | | ??????# #? """??? # ! ""#######" | | ??????# #? ![% ????# # ###?????#" | | ??????# #??"!" ""???? %;######## | | ?#????# #???"" ????? | | ?# ???# #????" """??????# % | | ?# ??! #????"""""????### !!*[% % | | ?# ?#%![ #?#??###;###??# " =!*!!= | | ?# #!=%[!#[#;## ####; !!%!!=! ! | | ## [#%=![=%= !!=! | | " !=%!![= = g @x * ! = | | ## #%*!% % != !!== ! | | ?#""??#===[ ! != !! | | ######"* %%! ! ! = [%! | | # =[==!*! [! M![ #""""#= | | = %[!%[%== !!! = #????#" | | # !!%!=%=!%==%= % #????#""" | | ###!!*" [[=#[ # ## # ## #????#### | | #?###= ## #???????? | | # #???# # # E # #??????? | | # #???#" ## # #?????# " | | # #???#"" """"" %" # " #?????#"" | | # #???#" """""!%"# "" " # #?????#"" | | # #???#"" """"" "## ""X"" ## ! # #?????#"" | | # #???#" "### "" "" # ## ! #?????# " | | # #????##??##### ##?# # ## = ##??????? | | # #????????????? #??############= [ #??????? | | # #????????????? "??????????### = # #?????? " | | # #?????????????""?????????????? !! # ##??????"" | | # #????????????? ???????########%! ###????????# | | # #??????????????????????""""""""== #??????????? | | # #?????????????????????""" """"" #??????????? | | ##????????????##????"""" " "" #??????????? | | #???????????? * #??????????? | | ##???###????## ##??#"" "" "" "%=!#??????????? | +----------------------------------------------------+ Best States ------------- Heat Dissipation 57 Energy Generation 14 Energy Capacity 900 Matter Stores 300 Matter Capacity 500 Sight Range 24 Terrain Scan Density 10 Power Shielding 90 Evasion (%) 50 Recoil Reduction 4 Item Schematics ----------------- None Robot Schematics ------------------ None Fabricated ------------ Nothing Repaired ---------- Nothing Studied --------- None Alien Tech Used ----------------- None Achievements -------------- None Challenges ------------ None Game ------ Seed SwordMagneticBuckler Manual? 0 Play Time 00:56:46 Cumulative 577.7 hours Start 2025.11.30 @ 14:45:12 End 2025.11.30 @ 20:30:09 Sessions 9 Manual Loads 0 Difficulty Rogue Special Mode None Game No. 743 Rogue 743 Adventurer 0 Explorer 0 Win Type - Total 21 Types 10/1/2/2/2/0/2/2/0/0 Lore% 93 Gallery% 90 Achievement% 75 Wizard Run 0 Options --------- Layout 2 ASCII 0 Keyboard 0 Movement Mouse Keybinds 0 Fullscreen 2 Font 24/Smallcaps Map View 50x49 Zoom Use 0% Tactical HUD 1 Map Filters NONE Filters NONE Steam 1 RUN: fd4a6faa-3131-4118-a4be-3921a308a1e0